[Event "Early-Titled-Tuesday-Blitz-February-06-2024"]
[Site "Chess.com"]
[Date "2024.02.06"]
[Round "5"]
[White "Seochesspie"]
[Black "Djager97"]
[Result "0-1"]
[WhiteElo "2796"]
[BlackElo "2619"]
[TimeControl "180+1"]
[EndTime "8:55:00 PST"]
[Termination "Djager97 won by resignation"]

1. d4 {[%clk 0:03:00.9]} 1... d5 {[%clk 0:02:58.9]} 2. c4 {[%clk 0:03:01]} 2...
e6 {[%clk 0:02:59.4]} 3. Nc3 {[%clk 0:03:01.1]} 3... c6 {[%clk 0:02:58.9]} 4. e3
{[%clk 0:02:57.8]} 4... Nf6 {[%clk 0:02:57.7]} 5. Nf3 {[%clk 0:02:57.7]} 5...
Nbd7 {[%clk 0:02:58]} 6. Qc2 {[%clk 0:02:57.3]} 6... Bd6 {[%clk 0:02:58.5]} 7.
Bd3 {[%clk 0:02:56.8]} 7... dxc4 {[%clk 0:02:55.2]} 8. Bxc4 {[%clk 0:02:56.9]}
8... O-O {[%clk 0:02:56.1]} 9. O-O {[%clk 0:02:56.5]} 9... b5 {[%clk 0:02:56.7]}
10. Be2 {[%clk 0:02:53.5]} 10... Bb7 {[%clk 0:02:57.6]} 11. Rd1 {[%clk
0:02:53.1]} 11... Qc7 {[%clk 0:02:49.8]} 12. h3 {[%clk 0:02:49.6]} 12... b4
{[%clk 0:02:41.2]} 13. Na4 {[%clk 0:02:49.1]} 13... Rac8 {[%clk 0:02:21.5]} 14.
e4 {[%clk 0:02:40]} 14... e5 {[%clk 0:02:20.3]} 15. dxe5 {[%clk 0:02:38.9]}
15... Nxe5 {[%clk 0:02:20.3]} 16. Nxe5 {[%clk 0:02:36.7]} 16... Bxe5 {[%clk
0:02:21.2]} 17. Nc5 {[%clk 0:02:32.3]} 17... Rcd8 {[%clk 0:02:21]} 18. Be3
{[%clk 0:02:26.3]} 18... Bc8 {[%clk 0:02:19.9]} 19. a3 {[%clk 0:02:23.5]} 19...
Rxd1+ {[%clk 0:02:12.6]} 20. Rxd1 {[%clk 0:02:22.9]} 20... bxa3 {[%clk
0:02:12.9]} 21. bxa3 {[%clk 0:02:23.1]} 21... h6 {[%clk 0:02:07.4]} 22. a4
{[%clk 0:02:10.2]} 22... Bh2+ {[%clk 0:02:05.5]} 23. Kf1 {[%clk 0:01:58.9]}
23... Bf4 {[%clk 0:02:06.4]} 24. Bd4 {[%clk 0:01:58.7]} 24... Be5 {[%clk
0:01:58.1]} 25. Be3 {[%clk 0:01:57.2]} 25... Re8 {[%clk 0:01:57.7]} 26. Nd3
{[%clk 0:01:38.1]} 26... Nxe4 {[%clk 0:01:48.8]} 27. Nxe5 {[%clk 0:01:38.1]}
27... Qxe5 {[%clk 0:01:40]} 28. Bf3 {[%clk 0:01:37.5]} 28... Ng3+ {[%clk
0:01:32.1]} 29. Kg1 {[%clk 0:01:32.5]} 29... Nf5 {[%clk 0:01:31]} 30. Bxa7
{[%clk 0:01:32.2]} 30... Be6 {[%clk 0:01:18.5]} 31. Qxc6 {[%clk 0:01:27.3]}
31... Rc8 {[%clk 0:01:19]} 32. Qb5 {[%clk 0:01:22.8]} 32... Qf4 {[%clk
0:01:14.1]} 33. Bb7 {[%clk 0:01:11]} 33... Rc1 {[%clk 0:00:45.7]} 34. Rxc1
{[%clk 0:00:52.2]} 34... Qxc1+ {[%clk 0:00:46.6]} 35. Kh2 {[%clk 0:00:52.3]}
35... Qc7+ {[%clk 0:00:47.5]} 36. f4 {[%clk 0:00:31.8]} 36... Nd6 {[%clk
0:00:36.9]} 0-1

[Event "Early-Titled-Tuesday-Blitz-February-06-2024"]
[Site "Chess.com"]
[Date "2024.02.06"]
[Round "5"]
[White "Baby_Legs"]
[Black "Jenia84"]
[Result "1-0"]
[WhiteElo "2646"]
[BlackElo "2313"]
[TimeControl "180+1"]
[EndTime "8:55:07 PST"]
[Termination "Baby_Legs won on time"]

1. c4 {[%clk 0:03:00.9]} 1... Nf6 {[%clk 0:02:57]} 2. Nc3 {[%clk 0:03:00.3]}
2... e5 {[%clk 0:02:52.6]} 3. g3 {[%clk 0:02:58.3]} 3... Nc6 {[%clk 0:02:51.6]}
4. Bg2 {[%clk 0:02:58.1]} 4... d6 {[%clk 0:02:51.2]} 5. d3 {[%clk 0:02:56.8]}
5... g6 {[%clk 0:02:50.9]} 6. e4 {[%clk 0:02:48.2]} 6... Bg7 {[%clk 0:02:49.7]}
7. Nge2 {[%clk 0:02:48.8]} 7... O-O {[%clk 0:02:48.7]} 8. h3 {[%clk 0:02:49.2]}
8... Nd4 {[%clk 0:02:47]} 9. Nxd4 {[%clk 0:02:48.8]} 9... exd4 {[%clk
0:02:46.8]} 10. Ne2 {[%clk 0:02:48.4]} 10... c5 {[%clk 0:02:37.6]} 11. Bd2
{[%clk 0:02:41]} 11... Bd7 {[%clk 0:02:37.5]} 12. O-O {[%clk 0:02:33.6]} 12...
Qc8 {[%clk 0:02:29.1]} 13. Kh2 {[%clk 0:02:33.6]} 13... Rb8 {[%clk 0:02:18.3]}
14. a4 {[%clk 0:02:31.2]} 14... b6 {[%clk 0:02:14]} 15. b4 {[%clk 0:02:27.5]}
15... Nh5 {[%clk 0:02:05.2]} 16. g4 {[%clk 0:02:00]} 16... Nf6 {[%clk
0:02:02.7]} 17. Ng3 {[%clk 0:01:58.2]} 17... Ne8 {[%clk 0:01:51.8]} 18. f4
{[%clk 0:01:55.6]} 18... Nc7 {[%clk 0:01:47.9]} 19. b5 {[%clk 0:01:53.1]} 19...
Qe8 {[%clk 0:01:38.8]} 20. Qf3 {[%clk 0:01:49.3]} 20... Qe7 {[%clk 0:01:35.2]}
21. a5 {[%clk 0:01:41.8]} 21... Qh4 {[%clk 0:01:22.7]} 22. axb6 {[%clk
0:01:37.8]} 22... axb6 {[%clk 0:01:22]} 23. Ra7 {[%clk 0:01:37.6]} 23... Rfc8
{[%clk 0:00:55.3]} 24. Rfa1 {[%clk 0:01:37]} 24... Be8 {[%clk 0:00:41]} 25. Ne2
{[%clk 0:00:59.3]} 25... Ne6 {[%clk 0:00:34.4]} 26. g5 {[%clk 0:00:49.9]} 26...
h6 {[%clk 0:00:15.7]} 27. Be1 {[%clk 0:00:49.8]} 27... Qh5 {[%clk 0:00:15.7]}
28. Qxh5 {[%clk 0:00:49.7]} 28... gxh5 {[%clk 0:00:16]} 29. h4 {[%clk
0:00:47.9]} 29... hxg5 {[%clk 0:00:15.3]} 30. hxg5 {[%clk 0:00:47.6]} 30... Nd8
{[%clk 0:00:11.7]} 31. Bh3 {[%clk 0:00:44.6]} 31... Ne6 {[%clk 0:00:10.1]} 32.
Bh4 {[%clk 0:00:42.7]} 32... Rc7 {[%clk 0:00:07.7]} 33. Kg2 {[%clk 0:00:35.1]}
33... Rxa7 {[%clk 0:00:06.1]} 34. Rxa7 {[%clk 0:00:36]} 34... Kf8 {[%clk
0:00:04.4]} 35. f5 {[%clk 0:00:33.2]} 1-0

[Event "Early-Titled-Tuesday-Blitz-February-06-2024"]
[Site "Chess.com"]
[Date "2024.02.06"]
[Round "5"]
[White "cristiano78"]
[Black "AttilaTurzo"]
[Result "0-1"]
[WhiteElo "2272"]
[BlackElo "2454"]
[TimeControl "180+1"]
[EndTime "8:55:07 PST"]
[Termination "AttilaTurzo won on time"]

1. d4 {[%clk 0:02:59.2]} 1... Nf6 {[%clk 0:02:58.7]} 2. c3 {[%clk 0:02:58.5]}
2... e6 {[%clk 0:02:57.1]} 3. Nf3 {[%clk 0:02:58.6]} 3... c5 {[%clk 0:02:53.6]}
4. Bf4 {[%clk 0:02:57.1]} 4... b6 {[%clk 0:02:52.3]} 5. e3 {[%clk 0:02:55.3]}
5... Bb7 {[%clk 0:02:51.7]} 6. Nbd2 {[%clk 0:02:55]} 6... cxd4 {[%clk
0:02:50.5]} 7. cxd4 {[%clk 0:02:50.6]} 7... Be7 {[%clk 0:02:48.7]} 8. h3 {[%clk
0:02:49.8]} 8... O-O {[%clk 0:02:47.7]} 9. Rc1 {[%clk 0:02:38.4]} 9... d6 {[%clk
0:02:32.4]} 10. Be2 {[%clk 0:02:22.3]} 10... Nbd7 {[%clk 0:02:32.6]} 11. O-O
{[%clk 0:02:20.7]} 11... Rc8 {[%clk 0:02:32.6]} 12. a3 {[%clk 0:02:16.8]} 12...
Rc7 {[%clk 0:02:28.2]} 13. Rxc7 {[%clk 0:02:08.6]} 13... Qc8 {[%clk 0:02:28.3]}
14. Qb1 {[%clk 0:02:08.9]} 14... Qxc7 {[%clk 0:02:23.8]} 15. Rc1 {[%clk
0:02:08.2]} 15... Qb8 {[%clk 0:02:22]} 16. b4 {[%clk 0:02:05.4]} 16... Rc8
{[%clk 0:02:21]} 17. Qb2 {[%clk 0:01:53]} 17... Ne4 {[%clk 0:02:10.6]} 18. Nxe4
{[%clk 0:01:51.5]} 18... Bxe4 {[%clk 0:02:11.5]} 19. Nd2 {[%clk 0:01:49.2]}
19... Bb7 {[%clk 0:02:05.8]} 20. Nb3 {[%clk 0:01:43.9]} 20... Nf6 {[%clk
0:01:57]} 21. f3 {[%clk 0:01:32.5]} 21... Nd5 {[%clk 0:01:54]} 22. Rxc8+ {[%clk
0:01:13.6]} 22... Qxc8 {[%clk 0:01:51.8]} 23. Qc1 {[%clk 0:01:13.1]} 23... Qxc1+
{[%clk 0:01:45]} 24. Nxc1 {[%clk 0:01:12.2]} 24... g5 {[%clk 0:01:42.3]} 25. Bg3
{[%clk 0:01:04.9]} 25... Nxe3 {[%clk 0:01:42.6]} 26. Bf2 {[%clk 0:01:00.7]}
26... Nc2 {[%clk 0:01:40.2]} 27. Bd3 {[%clk 0:00:45.5]} 27... Nxa3 {[%clk
0:01:39]} 28. Na2 {[%clk 0:00:32.6]} 28... Bd5 {[%clk 0:01:30]} 29. Nc3 {[%clk
0:00:29.7]} 29... Bc4 {[%clk 0:01:30]} 30. Bxc4 {[%clk 0:00:26]} 30... Nxc4
{[%clk 0:01:30.9]} 31. Nb5 {[%clk 0:00:25]} 31... a6 {[%clk 0:01:22.9]} 32. Na7
{[%clk 0:00:24.9]} 32... d5 {[%clk 0:01:19.3]} 33. Nc6 {[%clk 0:00:24.5]} 33...
Bd6 {[%clk 0:01:16]} 34. Ne5 {[%clk 0:00:18.9]} 34... Nxe5 {[%clk 0:01:04.1]}
35. dxe5 {[%clk 0:00:18]} 35... Bxe5 {[%clk 0:01:03.2]} 36. Bxb6 {[%clk
0:00:15.9]} 36... Bd6 {[%clk 0:01:03.4]} 37. Ba5 {[%clk 0:00:15.5]} 37... Kf8
{[%clk 0:01:02.4]} 38. Kf2 {[%clk 0:00:11.5]} 38... Ke7 {[%clk 0:01:02.5]} 39.
Ke3 {[%clk 0:00:07.6]} 39... Kd7 {[%clk 0:01:02.2]} 40. Kd4 {[%clk 0:00:08]}
40... f5 {[%clk 0:00:55.2]} 41. Kc3 {[%clk 0:00:07]} 41... h5 {[%clk 0:00:52.9]}
0-1

[Event "Early-Titled-Tuesday-Blitz-February-06-2024"]
[Site "Chess.com"]
[Date "2024.02.06"]
[Round "5"]
[White "Bekkedahl"]
[Black "SujanaLohani"]
[Result "1-0"]
[WhiteElo "2232"]
[BlackElo "1985"]
[TimeControl "180+1"]
[EndTime "8:55:07 PST"]
[Termination "Bekkedahl won on time"]

1. e4 {[%clk 0:02:46.5]} 1... c5 {[%clk 0:03:00.3]} 2. Nf3 {[%clk 0:02:45.4]}
2... Nc6 {[%clk 0:02:59.9]} 3. Bb5 {[%clk 0:02:45.5]} 3... Nd4 {[%clk
0:02:56.5]} 4. Bc4 {[%clk 0:02:44.3]} 4... e6 {[%clk 0:02:54.6]} 5. c3 {[%clk
0:02:44.3]} 5... Nc6 {[%clk 0:02:53.1]} 6. O-O {[%clk 0:02:43.5]} 6... a6 {[%clk
0:02:51]} 7. d4 {[%clk 0:02:43.2]} 7... cxd4 {[%clk 0:02:50.2]} 8. cxd4 {[%clk
0:02:43.2]} 8... d5 {[%clk 0:02:41.1]} 9. exd5 {[%clk 0:02:35.3]} 9... exd5
{[%clk 0:02:41]} 10. Re1+ {[%clk 0:02:36.2]} 10... Be6 {[%clk 0:02:40.2]} 11.
Bb3 {[%clk 0:02:35.7]} 11... Nf6 {[%clk 0:02:34]} 12. Nc3 {[%clk 0:02:36]} 12...
Be7 {[%clk 0:02:24.7]} 13. Bg5 {[%clk 0:02:35.7]} 13... O-O {[%clk 0:02:24]} 14.
a3 {[%clk 0:02:35.3]} 14... Rc8 {[%clk 0:01:46]} 15. Qd2 {[%clk 0:02:35.3]}
15... Na5 {[%clk 0:01:44.7]} 16. Ba2 {[%clk 0:02:34.7]} 16... Nc4 {[%clk
0:01:44]} 17. Bxc4 {[%clk 0:02:35.3]} 17... Rxc4 {[%clk 0:01:37.9]} 18. Ne5
{[%clk 0:02:35.4]} 18... Rc7 {[%clk 0:01:28.8]} 19. Rac1 {[%clk 0:02:36.2]}
19... b5 {[%clk 0:01:22.7]} 20. h3 {[%clk 0:02:36.2]} 20... Qa8 {[%clk
0:01:18.8]} 21. Qe3 {[%clk 0:02:25.2]} 21... Rfc8 {[%clk 0:01:17.8]} 22. Qg3
{[%clk 0:02:19.3]} 22... Qa7 {[%clk 0:01:08.2]} 23. h4 {[%clk 0:01:57.8]} 23...
Qxd4 {[%clk 0:01:06.8]} 24. Nf3 {[%clk 0:01:53.5]} 24... Ne4 {[%clk 0:00:45.4]}
25. Qf4 {[%clk 0:01:48.9]} 25... Bxg5 {[%clk 0:00:35.9]} 26. Nxg5 {[%clk
0:01:47.8]} 26... Rc4 {[%clk 0:00:18.6]} 27. Red1 {[%clk 0:01:21]} 27... Qf6
{[%clk 0:00:14]} 28. Qe3 {[%clk 0:01:13.2]} 28... Nxg5 {[%clk 0:00:12.5]} 29.
hxg5 {[%clk 0:01:13.6]} 29... Qg6 {[%clk 0:00:11.6]} 30. Rd2 {[%clk 0:00:53.5]}
30... b4 {[%clk 0:00:02.2]} 31. axb4 {[%clk 0:00:53.3]} 31... Rxb4 {[%clk
0:00:02.9]} 32. Qe5 {[%clk 0:00:43.6]} 32... Rcb8 {[%clk 0:00:02.1]} 33. Nxd5
{[%clk 0:00:41.4]} 33... Bxd5 {[%clk 0:00:01.9]} 34. Rxd5 {[%clk 0:00:42]} 34...
Rxb2 {[%clk 0:00:01.7]} 35. Qxb2 {[%clk 0:00:41.5]} 1-0

[Event "Early-Titled-Tuesday-Blitz-February-06-2024"]
[Site "Chess.com"]
[Date "2024.02.06"]
[Round "5"]
[White "KanalSzachowy"]
[Black "Mesa_1"]
[Result "0-1"]
[WhiteElo "2363"]
[BlackElo "2549"]
[TimeControl "180+1"]
[EndTime "8:55:09 PST"]
[Termination "Mesa_1 won on time"]

1. e4 {[%clk 0:03:00.9]} 1... c5 {[%clk 0:02:58.5]} 2. Nc3 {[%clk 0:03:00.2]}
2... e6 {[%clk 0:02:59.2]} 3. Nf3 {[%clk 0:02:59.7]} 3... a6 {[%clk 0:02:58.7]}
4. d4 {[%clk 0:02:59.1]} 4... cxd4 {[%clk 0:02:59.6]} 5. Nxd4 {[%clk 0:02:59.9]}
5... b5 {[%clk 0:02:57.8]} 6. Bd3 {[%clk 0:02:59.1]} 6... Bb7 {[%clk 0:02:57.5]}
7. O-O {[%clk 0:02:58.8]} 7... Nc6 {[%clk 0:02:58.2]} 8. Nxc6 {[%clk 0:02:58.9]}
8... Bxc6 {[%clk 0:02:59.1]} 9. Re1 {[%clk 0:02:59.4]} 9... Ne7 {[%clk
0:02:56.5]} 10. h4 {[%clk 0:02:35.7]} 10... Ng6 {[%clk 0:02:52.6]} 11. h5 {[%clk
0:02:35.6]} 11... Ne5 {[%clk 0:02:53.3]} 12. Bf4 {[%clk 0:02:24]} 12... d6
{[%clk 0:02:39.5]} 13. Bxe5 {[%clk 0:02:15]} 13... dxe5 {[%clk 0:02:40.4]} 14.
Qg4 {[%clk 0:02:13.1]} 14... Qf6 {[%clk 0:02:29.5]} 15. Rad1 {[%clk 0:01:59.7]}
15... Bc5 {[%clk 0:02:24.4]} 16. Qg3 {[%clk 0:01:39.4]} 16... g6 {[%clk
0:02:21.9]} 17. h6 {[%clk 0:01:36.3]} 17... Qf4 {[%clk 0:02:15.6]} 18. Ne2
{[%clk 0:01:24.8]} 18... Qxg3 {[%clk 0:02:12.4]} 19. Nxg3 {[%clk 0:01:25.7]}
19... Bf8 {[%clk 0:02:11.5]} 20. c4 {[%clk 0:01:11.4]} 20... Bxh6 {[%clk
0:02:07.9]} 21. Rc1 {[%clk 0:01:03.3]} 21... Bxc1 {[%clk 0:02:06.3]} 22. Rxc1
{[%clk 0:01:01.6]} 22... bxc4 {[%clk 0:02:03.3]} 23. Bxc4 {[%clk 0:00:59.1]}
23... Bb5 {[%clk 0:01:58.9]} 24. b3 {[%clk 0:00:39.1]} 24... Kd7 {[%clk
0:01:54.6]} 25. Nf1 {[%clk 0:00:36.7]} 25... Bxc4 {[%clk 0:01:52.5]} 26. bxc4
{[%clk 0:00:35.8]} 26... Rab8 {[%clk 0:01:51.1]} 27. c5 {[%clk 0:00:33.3]} 27...
Rhc8 {[%clk 0:01:47.5]} 28. Ne3 {[%clk 0:00:33.3]} 28... Rb5 {[%clk 0:01:46.4]}
29. Nc4 {[%clk 0:00:31.4]} 29... Rcxc5 {[%clk 0:01:46.9]} 30. a4 {[%clk
0:00:26.4]} 30... Ke7 {[%clk 0:01:39]} 31. axb5 {[%clk 0:00:25]} 31... axb5
{[%clk 0:01:39.9]} 32. Kf1 {[%clk 0:00:18.3]} 32... Rxc4 {[%clk 0:01:36.3]} 33.
Rb1 {[%clk 0:00:16.7]} 33... b4 {[%clk 0:01:34.2]} 34. Ke2 {[%clk 0:00:16.8]}
34... Rxe4+ {[%clk 0:01:33.1]} 35. Kd3 {[%clk 0:00:16.1]} 35... Rd4+ {[%clk
0:01:33.3]} 36. Ke3 {[%clk 0:00:15.6]} 36... f5 {[%clk 0:01:33.3]} 37. f4 {[%clk
0:00:15.9]} 37... Re4+ {[%clk 0:01:32.6]} 38. Kd3 {[%clk 0:00:15.2]} 38... Rxf4
{[%clk 0:01:33.5]} 39. g3 {[%clk 0:00:14.2]} 39... Rg4 {[%clk 0:01:32.9]} 40.
Ke2 {[%clk 0:00:13.3]} 40... Kf6 {[%clk 0:01:32.1]} 41. Rh1 {[%clk 0:00:12.1]}
41... h5 {[%clk 0:01:32.5]} 42. Rb1 {[%clk 0:00:10.3]} 42... Rd4 {[%clk
0:01:31.3]} 43. Rc1 {[%clk 0:00:09]} 43... Kg5 {[%clk 0:01:31.5]} 44. Rc7 {[%clk
0:00:08.7]} 44... h4 {[%clk 0:01:25.3]} 45. gxh4+ {[%clk 0:00:07.1]} 45... Rxh4
{[%clk 0:01:26.2]} 46. Rb7 {[%clk 0:00:06.8]} 46... f4 {[%clk 0:01:25.3]} 47.
Kf2 {[%clk 0:00:04.8]} 47... Rh2+ {[%clk 0:01:23.7]} 48. Kg1 {[%clk 0:00:05]}
48... Rb2 {[%clk 0:01:23.8]} 49. Rb6 {[%clk 0:00:03.6]} 49... Kf5 {[%clk
0:01:23.4]} 50. Rd6 {[%clk 0:00:02.9]} 50... g5 {[%clk 0:01:23.6]} 51. Rd3
{[%clk 0:00:02.2]} 51... g4 {[%clk 0:01:23.5]} 0-1

[Event "Early-Titled-Tuesday-Blitz-February-06-2024"]
[Site "Chess.com"]
[Date "2024.02.06"]
[Round "5"]
[White "Canal_Showdrez"]
[Black "mertfelin"]
[Result "1-0"]
[WhiteElo "2049"]
[BlackElo "2259"]
[TimeControl "180+1"]
[EndTime "8:55:11 PST"]
[Termination "Canal_Showdrez won by resignation"]

1. d4 {[%clk 0:03:00.9]} 1... d5 {[%clk 0:02:59.2]} 2. Nf3 {[%clk 0:03:00.3]}
2... Nf6 {[%clk 0:02:59.5]} 3. e3 {[%clk 0:03:00.5]} 3... e6 {[%clk 0:02:58.7]}
4. Bd3 {[%clk 0:02:59.6]} 4... c5 {[%clk 0:02:56.3]} 5. c3 {[%clk 0:02:58]} 5...
Nc6 {[%clk 0:02:51.9]} 6. Ne5 {[%clk 0:02:55.1]} 6... c4 {[%clk 0:02:48.3]} 7.
Bc2 {[%clk 0:02:54.7]} 7... Nxe5 {[%clk 0:02:43.4]} 8. dxe5 {[%clk 0:02:55.6]}
8... Nd7 {[%clk 0:02:43.6]} 9. f4 {[%clk 0:02:52.5]} 9... Qh4+ {[%clk
0:02:40.1]} 10. g3 {[%clk 0:02:49.2]} 10... Qh3 {[%clk 0:02:40.5]} 11. Qe2
{[%clk 0:02:37]} 11... b5 {[%clk 0:02:35.7]} 12. Nd2 {[%clk 0:02:35.8]} 12...
Bc5 {[%clk 0:02:29.7]} 13. Nf3 {[%clk 0:02:35.2]} 13... Bb7 {[%clk 0:02:29.2]}
14. Bd2 {[%clk 0:02:29.5]} 14... a5 {[%clk 0:02:09.5]} 15. O-O-O {[%clk
0:02:07.7]} 15... Be7 {[%clk 0:01:36.1]} 16. Rhg1 {[%clk 0:02:01.4]} 16... h5
{[%clk 0:01:23.1]} 17. Nd4 {[%clk 0:01:43.6]} 17... b4 {[%clk 0:01:05.9]} 18.
Rdf1 {[%clk 0:01:36.7]} 18... O-O {[%clk 0:00:47.3]} 19. g4 {[%clk 0:01:08.8]}
19... hxg4 {[%clk 0:00:44.4]} 20. Rg3 {[%clk 0:01:07.8]} 20... Qh6 {[%clk
0:00:38.6]} 21. Rxg4 {[%clk 0:01:04.8]} 21... b3 {[%clk 0:00:25.2]} 22. axb3
{[%clk 0:00:46.9]} 22... cxb3 {[%clk 0:00:25.5]} 23. Bb1 {[%clk 0:00:45.7]}
23... Ba6 {[%clk 0:00:24.6]} 24. Bd3 {[%clk 0:00:43.9]} 24... Bxd3 {[%clk
0:00:24]} 25. Qxd3 {[%clk 0:00:44.1]} 25... Nc5 {[%clk 0:00:24.4]} 26. Qe2
{[%clk 0:00:39.4]} 26... Qh7 {[%clk 0:00:21.5]} 27. f5 {[%clk 0:00:25]} 27...
Kh8 {[%clk 0:00:06.4]} 28. Be1 {[%clk 0:00:16.7]} 28... exf5 {[%clk 0:00:04.7]}
29. Nxf5 {[%clk 0:00:16.5]} 1-0

[Event "Early-Titled-Tuesday-Blitz-February-06-2024"]
[Site "Chess.com"]
[Date "2024.02.06"]
[Round "5"]
[White "IMRosen"]
[Black "DenLaz"]
[Result "0-1"]
[WhiteElo "2695"]
[BlackElo "3055"]
[TimeControl "180+1"]
[EndTime "8:55:12 PST"]
[Termination "DenLaz won by checkmate"]

1. d4 {[%clk 0:03:00.9]} 1... Nf6 {[%clk 0:03:00.1]} 2. Bf4 {[%clk 0:03:01.5]}
2... d5 {[%clk 0:03:00]} 3. e3 {[%clk 0:03:01.2]} 3... c5 {[%clk 0:03:00.5]} 4.
Nf3 {[%clk 0:03:01.6]} 4... Nc6 {[%clk 0:03:00.3]} 5. Nbd2 {[%clk 0:03:02.1]}
5... Bg4 {[%clk 0:03:01]} 6. c3 {[%clk 0:03:02.3]} 6... e6 {[%clk 0:03:01.6]} 7.
Qa4 {[%clk 0:03:03]} 7... Bxf3 {[%clk 0:02:55.1]} 8. Nxf3 {[%clk 0:03:03.9]}
8... a6 {[%clk 0:02:53.9]} 9. Ne5 {[%clk 0:03:00.8]} 9... Rc8 {[%clk 0:02:53.9]}
10. Nxc6 {[%clk 0:02:56.1]} 10... Qd7 {[%clk 0:02:54.2]} 11. Bd3 {[%clk
0:02:47]} 11... Rxc6 {[%clk 0:02:51.7]} 12. O-O {[%clk 0:02:44.2]} 12... c4
{[%clk 0:02:51.2]} 13. Be2 {[%clk 0:02:39.4]} 13... Bd6 {[%clk 0:02:51.5]} 14.
Bxd6 {[%clk 0:02:24.5]} 14... Qxd6 {[%clk 0:02:52.4]} 15. Qc2 {[%clk 0:02:25.2]}
15... O-O {[%clk 0:02:51]} 16. f4 {[%clk 0:02:07.8]} 16... b5 {[%clk 0:02:48.9]}
17. Bf3 {[%clk 0:02:05.6]} 17... b4 {[%clk 0:02:45.3]} 18. g3 {[%clk 0:02:05.5]}
18... Rb8 {[%clk 0:02:33.8]} 19. e4 {[%clk 0:02:02.5]} 19... dxe4 {[%clk
0:02:34]} 20. Bxe4 {[%clk 0:02:03.4]} 20... Rcb6 {[%clk 0:02:34.6]} 21. Rab1
{[%clk 0:01:51.4]} 21... g6 {[%clk 0:02:14.2]} 22. Bf3 {[%clk 0:01:39.5]} 22...
bxc3 {[%clk 0:02:12.1]} 23. bxc3 {[%clk 0:01:39.3]} 23... Qa3 {[%clk 0:02:12]}
24. Rxb6 {[%clk 0:00:38.1]} 24... Rxb6 {[%clk 0:02:12.9]} 25. Qc1 {[%clk
0:00:34.7]} 25... Qxa2 {[%clk 0:01:56.4]} 26. Qa1 {[%clk 0:00:30.9]} 26... Qd2
{[%clk 0:01:43]} 27. Rf2 {[%clk 0:00:19.7]} 27... Qd3 {[%clk 0:01:41.3]} 28. Kg2
{[%clk 0:00:17.4]} 28... Rb1 {[%clk 0:01:39.2]} 29. Qa5 {[%clk 0:00:09.3]} 29...
Kg7 {[%clk 0:01:28.2]} 30. Qe5 {[%clk 0:00:06.9]} 30... Qxc3 {[%clk 0:01:25.2]}
31. g4 {[%clk 0:00:07.1]} 31... Rb5 {[%clk 0:01:25.9]} 32. Qc7 {[%clk
0:00:04.7]} 32... Qxd4 {[%clk 0:01:24]} 33. Rc2 {[%clk 0:00:02.7]} 33... Rb2
{[%clk 0:01:22.2]} 34. Rxb2 {[%clk 0:00:02.2]} 34... Qxb2+ {[%clk 0:01:23.1]}
35. Kg3 {[%clk 0:00:02.9]} 35... Qd4 {[%clk 0:01:23.4]} 36. h3 {[%clk
0:00:03.1]} 36... c3 {[%clk 0:01:22]} 37. h4 {[%clk 0:00:02.1]} 37... Nd5 {[%clk
0:01:20.8]} 38. Bxd5 {[%clk 0:00:02]} 38... exd5 {[%clk 0:01:21]} 39. f5 {[%clk
0:00:02.1]} 39... gxf5 {[%clk 0:01:15.5]} 40. gxf5 {[%clk 0:00:02.1]} 40... h5
{[%clk 0:01:12.8]} 41. f6+ {[%clk 0:00:02.5]} 41... Qxf6 {[%clk 0:01:12.3]} 42.
Kg2 {[%clk 0:00:03]} 42... d4 {[%clk 0:01:07.4]} 43. Qg3+ {[%clk 0:00:03.9]}
43... Qg6 {[%clk 0:01:05.5]} 44. Kh2 {[%clk 0:00:04.6]} 44... Qxg3+ {[%clk
0:01:04.9]} 45. Kh1 {[%clk 0:00:04.5]} 45... Qg4 {[%clk 0:01:04.3]} 46. Kh2
{[%clk 0:00:02.6]} 46... c2 {[%clk 0:01:04.4]} 47. Kh1 {[%clk 0:00:02.6]} 47...
c1=Q+ {[%clk 0:01:04.9]} 48. Kh2 {[%clk 0:00:03.4]} 48... Qcg1# {[%clk
0:01:05.1]} 0-1

[Event "Early-Titled-Tuesday-Blitz-February-06-2024"]
[Site "Chess.com"]
[Date "2024.02.06"]
[Round "5"]
[White "Zarinur"]
[Black "Andrey_Klymchuk"]
[Result "0-1"]
[WhiteElo "2503"]
[BlackElo "2762"]
[TimeControl "180+1"]
[EndTime "8:55:12 PST"]
[Termination "Andrey_Klymchuk won on time"]

1. e4 {[%clk 0:03:00.9]} 1... c5 {[%clk 0:02:59.7]} 2. Nf3 {[%clk 0:03:00.8]}
2... Nc6 {[%clk 0:02:59.4]} 3. Bb5 {[%clk 0:02:59.1]} 3... Nf6 {[%clk
0:02:59.4]} 4. e5 {[%clk 0:02:58.5]} 4... Nd5 {[%clk 0:02:59]} 5. Nc3 {[%clk
0:02:58.8]} 5... Nc7 {[%clk 0:02:58.6]} 6. Bxc6 {[%clk 0:02:56.8]} 6... dxc6
{[%clk 0:02:59.5]} 7. O-O {[%clk 0:02:56.7]} 7... Bg4 {[%clk 0:02:58.4]} 8. h3
{[%clk 0:02:54.9]} 8... Bh5 {[%clk 0:02:58.4]} 9. Ne4 {[%clk 0:02:50.3]} 9... b6
{[%clk 0:02:52.3]} 10. Ng3 {[%clk 0:02:43.9]} 10... Bxf3 {[%clk 0:02:36.3]} 11.
Qxf3 {[%clk 0:02:43.4]} 11... Qd5 {[%clk 0:02:36.8]} 12. Qe2 {[%clk 0:02:30.4]}
12... Ne6 {[%clk 0:02:34]} 13. Qe4 {[%clk 0:02:04]} 13... Rd8 {[%clk 0:02:09.4]}
14. Qxd5 {[%clk 0:01:48.8]} 14... Rxd5 {[%clk 0:02:05.9]} 15. f4 {[%clk
0:01:47.7]} 15... Nd4 {[%clk 0:02:05.6]} 16. c3 {[%clk 0:01:46.7]} 16... Ne6
{[%clk 0:01:53.6]} 17. f5 {[%clk 0:01:21.3]} 17... Nc7 {[%clk 0:01:46.1]} 18. c4
{[%clk 0:01:09.2]} 18... Rd3 {[%clk 0:01:35]} 19. Ne2 {[%clk 0:00:59.4]} 19...
e6 {[%clk 0:01:31.9]} 20. b3 {[%clk 0:00:16.8]} 20... exf5 {[%clk 0:01:31.3]}
21. Rxf5 {[%clk 0:00:17.7]} 21... Ne6 {[%clk 0:01:23.8]} 22. Kf1 {[%clk
0:00:14.6]} 22... g6 {[%clk 0:01:23.5]} 23. Rf2 {[%clk 0:00:13.1]} 23... Bg7
{[%clk 0:01:21.9]} 24. Bb2 {[%clk 0:00:11.4]} 24... Rxd2 {[%clk 0:01:21.8]} 25.
Bc3 {[%clk 0:00:11.6]} 25... Rd3 {[%clk 0:01:20.5]} 26. Rc1 {[%clk 0:00:06]}
26... O-O {[%clk 0:01:18.7]} 27. Ng1 {[%clk 0:00:05.3]} 27... Nd4 {[%clk
0:01:13.4]} 28. Bxd4 {[%clk 0:00:03.8]} 28... cxd4 {[%clk 0:01:11]} 29. Nf3
{[%clk 0:00:03.9]} 29... c5 {[%clk 0:01:05.3]} 30. Re2 {[%clk 0:00:04.2]} 30...
Re8 {[%clk 0:01:02.3]} 31. Re4 {[%clk 0:00:04.5]} 31... Bh6 {[%clk 0:01:00.9]}
32. Rce1 {[%clk 0:00:02.3]} 32... Rc3 {[%clk 0:00:57.8]} 33. R1e2 {[%clk
0:00:01.7]} 33... d3 {[%clk 0:00:55]} 34. Re1 {[%clk 0:00:01.4]} 34... d2 {[%clk
0:00:54.3]} 35. Rd1 {[%clk 0:00:02]} 35... Rc1 {[%clk 0:00:52.2]} 36. Ke2 {[%clk
0:00:02.7]} 36... Rd8 {[%clk 0:00:52.6]} 37. g4 {[%clk 0:00:03]} 37... Rxd1
{[%clk 0:00:50.9]} 38. Kxd1 {[%clk 0:00:03.9]} 38... Rd3 {[%clk 0:00:51.2]} 39.
g5 {[%clk 0:00:04.4]} 39... Rxf3 {[%clk 0:00:47.6]} 40. gxh6 {[%clk 0:00:04.3]}
40... Rxh3 {[%clk 0:00:48.2]} 41. Kxd2 {[%clk 0:00:02.7]} 41... Rxh6 {[%clk
0:00:47.9]} 42. e6 {[%clk 0:00:03.1]} 42... Kf8 {[%clk 0:00:48.3]} 0-1